fUST/lending_fUST_20260519
["ID","MTS","AMOUNT","RATE_DAILY","PERIOD"]
[422578588,1779121849000,-857.63,9.041e-05,2]
[422578590,1779121849000,-500.0,9.041e-05,2]
[422578591,1779121849000,-819.29,9.041e-05,2]
[422578596,1779121849000,-553.7,9.041e-05,2]
[422578597,1779121849000,-500.0,9.041e-05,2]
[422578598,1779121849000,-2932.37,9.041e-05,2]
[422578600,1779121849000,-5334.85,9.041e-05,2]
[422578602,1779121849000,-2423.17,9.041e-05,2]
[422578594,1779121849000,-500.0,9.041e-05,2]
[422578601,1779121849000,-2757.51,9.041e-05,2]
[422578592,1779121849000,-3056.43,9.041e-05,2]
[422578593,1779121849000,-500.0,9.041e-05,2]
[422578603,1779121849000,-500.0,9.041e-05,2]
[422578595,1779121849000,-2358.7,9.041e-05,2]
[422578599,1779121849000,-923.98,9.041e-05,2]
[422578604,1779121849000,-521.67,9.041e-05,2]
[422578606,1779121849000,-2645.3,9.041e-05,2]
[422578607,1779121849000,-617.6,9.041e-05,2]
[422578609,1779121849000,-2098.29299572,9.041e-05,2]
[422578608,1779121849000,-500.0,9.041e-05,2]
[422578548,1779121849000,-503.21,9.041e-05,2]
[422578582,1779121849000,-500.0,9.041e-05,2]
[422578584,1779121849000,-500.0,9.041e-05,2]
[422578605,1779121849000,-2239.75,9.041e-05,2]
[422578578,1779121849000,-1023.27,9.041e-05,2]
[422578581,1779121849000,-1516.18,9.041e-05,2]
[422578551,1779121849000,-500.0,9.041e-05,2]
[422578553,1779121849000,-500.0,9.041e-05,2]
[422578558,1779121849000,-500.0,9.041e-05,2]
[422578549,1779121849000,-500.0,9.041e-05,2]
[422578552,1779121849000,-500.0,9.041e-05,2]
[422578563,1779121849000,-500.0,9.041e-05,2]
[422578559,1779121849000,-993.14,9.041e-05,2]
[422578554,1779121849000,-500.0,9.041e-05,2]
[422578556,1779121849000,-500.0,9.041e-05,2]
[422578562,1779121849000,-500.0,9.041e-05,2]
[422578564,1779121849000,-601.71,9.041e-05,2]
[422578560,1779121849000,-500.0,9.041e-05,2]
[422578561,1779121849000,-720.17,9.041e-05,2]
[422578555,1779121849000,-650.4,9.041e-05,2]
[422578565,1779121849000,-500.0,9.041e-05,2]
[422578571,1779121849000,-500.0,9.041e-05,2]
[422578572,1779121849000,-1641.96,9.041e-05,2]
[422578573,1779121849000,-500.0,9.041e-05,2]
[422578570,1779121849000,-1174.26,9.041e-05,2]
[422578557,1779121849000,-500.0,9.041e-05,2]
[422578574,1779121849000,-3198.12,9.041e-05,2]
[422578568,1779121849000,-564.24,9.041e-05,2]
[422578575,1779121849000,-500.0,9.041e-05,2]
[422578576,1779121849000,-3915.56,9.041e-05,2]
[422578567,1779121849000,-500.0,9.041e-05,2]
[422578577,1779121849000,-1742.44,9.041e-05,2]
[422578566,1779121849000,-500.0,9.041e-05,2]
[422578569,1779121849000,-500.0,9.041e-05,2]
[422578610,1779121850000,-258.29329514,9.041e-05,2]
[422578611,1779121850000,-1352.99176546,9.041e-05,2]
[422578616,1779121850000,-500.0,9.041e-05,2]
[422578613,1779121850000,-500.0,9.041e-05,2]
[422578614,1779121850000,-6727.35,9.041e-05,2]
[422578615,1779121850000,-1016.0,9.041e-05,2]
[422578612,1779121850000,-5669.81194368,9.041e-05,2]
[422578618,1779121850000,-1189.85,9.041e-05,2]
[422578621,1779121850000,-2437.34152572,9.041e-05,2]
[422578623,1779121850000,-2095.0,9.041e-05,2]
[422578622,1779121850000,-288.6080418,9.041e-05,2]
[422578620,1779121850000,-500.0,9.041e-05,2]
[422578619,1779121850000,-1011.5,9.041e-05,2]
[422578624,1779121850000,-3843.75648302,9.041e-05,2]
[422578617,1779121850000,-2753.95,9.041e-05,2]
[422578682,1779123031000,-797.70119086,7.427e-05,2]
[422578680,1779123031000,-4202.29880914,7.427e-05,2]
[422578684,1779123031000,-45.72620664,7.502e-05,2]
[422578851,1779123038000,-500.0,8.018e-05,2]
[422578855,1779123038000,-500.0,8.018e-05,2]
[422578860,1779123038000,-500.0,8.018e-05,2]
[422578853,1779123038000,-500.0,8.018e-05,2]
[422578862,1779123038000,-500.0,8.018e-05,2]
[422578858,1779123038000,-500.0,8.018e-05,2]
[422578865,1779123038000,-500.0,8.018e-05,2]
[422578856,1779123038000,-500.0,8.018e-05,2]
[422578863,1779123038000,-568.7994321,8.018e-05,2]
[422578867,1779123038000,-500.0,8.018e-05,2]
[422578847,1779123038000,-500.0,8.018e-05,2]
[422578869,1779123038000,-500.0,8.018e-05,2]
[422578879,1779123038000,-500.0,8.018e-05,2]
[422578871,1779123038000,-500.0,8.018e-05,2]
[422578849,1779123038000,-500.0,8.018e-05,2]
[422578842,1779123038000,-500.0,8.018e-05,2]
[422578829,1779123038000,-240.98131731,8.018e-05,2]
[422578841,1779123038000,-500.0,8.018e-05,2]
[422578880,1779123038000,-500.0,8.018e-05,2]
[422578813,1779123038000,-2962.87162929,7.663e-05,2]
[422578815,1779123038000,-1788.56128278,7.74e-05,2]
[422578811,1779123038000,-154.27379336,7.502e-05,2]
[422578819,1779123038000,-300.0,7.886e-05,2]
[422578817,1779123038000,-300.0,7.886e-05,2]
[422578821,1779123038000,-354.67972803,7.887e-05,2]
[422578823,1779123038000,-188.04985561,7.957e-05,2]
[422578825,1779123038000,-508.459,7.957e-05,2]
[422578827,1779123038000,-480.0,8.017e-05,2]
[422578833,1779123038000,-500.0,8.018e-05,2]
[422578831,1779123038000,-500.0,8.018e-05,2]
[422578837,1779123038000,-500.0,8.018e-05,2]
[422578835,1779123038000,-500.0,8.018e-05,2]
[422578839,1779123038000,-500.0,8.018e-05,2]
[422578844,1779123038000,-500.0,8.018e-05,2]
[422578875,1779123038000,-482.76002037,8.018e-05,2]
[422578893,1779123038000,-2396.39256551,8.069e-05,2]
[422578888,1779123038000,-1411444.37482435,8.019e-05,2]
[422578920,1779123038000,-1087.65,8.219e-05,2]
[422578922,1779123038000,-500.0,8.219e-05,2]
[422578930,1779123038000,-669.83,8.219e-05,2]
[422578938,1779123038000,-500.0,8.219e-05,2]
[422578926,1779123038000,-548.71292324,8.219e-05,2]
[422578934,1779123038000,-500.0,8.219e-05,2]
[422578918,1779123038000,-570.4,8.219e-05,2]
[422578932,1779123038000,-500.0,8.219e-05,2]
[422578936,1779123038000,-500.0,8.219e-05,2]
[422578928,1779123038000,-500.0,8.219e-05,2]
[422578944,1779123038000,-1136.8,8.219e-05,2]
[422578940,1779123038000,-500.0,8.219e-05,2]
[422578942,1779123038000,-500.0,8.219e-05,2]
[422578946,1779123038000,-311.97788706,8.219e-05,2]
[422578924,1779123038000,-500.0,8.219e-05,2]
[422578916,1779123038000,-500.0,8.219e-05,2]
[422578910,1779123038000,-3309.6296,8.219e-05,2]
[422578908,1779123038000,-176.08926553,8.218e-05,2]
[422578882,1779123038000,-579.65369889,8.018e-05,2]
[422578877,1779123038000,-17.23997963,8.018e-05,2]
[422578884,1779123038000,-505.95826329,8.018e-05,2]
[422578873,1779123038000,-500.0,8.018e-05,2]
[422578890,1779123038000,-2396.39256552,8.019e-05,2]
[422578892,1779123038000,-2396.39256551,8.044e-05,2]
[422578912,1779123038000,-500.0,8.219e-05,2]
[422578895,1779123038000,-2396.39256551,8.093e-05,2]
[422578886,1779123038000,-229128.07860198,8.019e-05,2]
[422578899,1779123038000,-523.26248587,8.118e-05,2]
[422578900,1779123038000,-2396.39256551,8.118e-05,2]
[422578902,1779123038000,-500.0,8.218e-05,2]
[422578904,1779123038000,-500.0,8.218e-05,2]
[422578906,1779123038000,-500.0,8.218e-05,2]
[422578914,1779123038000,-500.0,8.219e-05,2]
[422578897,1779123038000,-500.0,8.118e-05,2]
[422579278,1779123041000,-500.0,8.219e-05,2]
[422579273,1779123041000,-257.13464239,8.219e-05,2]
[422579271,1779123041000,-629.37,8.219e-05,2]
[422579276,1779123041000,-242.86535761,8.219e-05,2]
[422579269,1779123041000,-95.89765559,8.219e-05,2]
[422579280,1779123041000,-188.3366724,8.219e-05,2]
[422579264,1779123041000,-188.02211294,8.219e-05,2]
[422579284,1779123041000,-500.0,8.219e-05,2]
[422579286,1779123041000,-933.63653041,8.219e-05,2]
[422579282,1779123041000,-1261.32,8.219e-05,2]
[422579266,1779123041000,-404.10234441,8.219e-05,2]
[422579602,1779123043000,-500.0,8.219e-05,2]
[422579604,1779123043000,-1994.6,8.219e-05,2]
[422579597,1779123043000,-500.0,8.219e-05,2]
[422579601,1779123043000,-500.0,8.219e-05,2]
[422579606,1779123043000,-500.0,8.219e-05,2]
[422579608,1779123043000,-500.0,8.219e-05,2]
[422579610,1779123043000,-714.69,8.219e-05,2]
[422579612,1779123043000,-595.06,8.219e-05,2]
[422579616,1779123043000,-500.0,8.219e-05,2]
[422579614,1779123043000,-500.0,8.219e-05,2]
[422579618,1779123043000,-1164.37,8.219e-05,2]
[422579622,1779123043000,-500.0,8.219e-05,2]
[422579624,1779123043000,-769.62,8.219e-05,2]
[422579628,1779123043000,-1214.01,8.219e-05,2]
[422579626,1779123043000,-500.0,8.219e-05,2]
[422579636,1779123043000,-727.24,8.219e-05,2]
[422579638,1779123043000,-2105.41,8.219e-05,2]
[422579632,1779123043000,-500.0,8.219e-05,2]
[422579630,1779123043000,-846.67,8.219e-05,2]
[422579634,1779123043000,-629.38,8.219e-05,2]
[422579599,1779123043000,-500.0,8.219e-05,2]
[422579639,1779123043000,-500.0,8.219e-05,2]
[422579620,1779123043000,-500.0,8.219e-05,2]
[422579595,1779123043000,-591.75,8.219e-05,2]
[422579544,1779123043000,-500.0,8.219e-05,2]
[422579586,1779123043000,-500.0,8.219e-05,2]
[422579645,1779123043000,-583.07,8.219e-05,2]
[422579542,1779123043000,-314.59346959,8.219e-05,2]
[422579546,1779123043000,-500.0,8.219e-05,2]
[422579548,1779123043000,-500.0,8.219e-05,2]
[422579550,1779123043000,-414.6417332,8.219e-05,2]
[422579561,1779123043000,-500.0,8.219e-05,2]
[422579567,1779123043000,-500.0,8.219e-05,2]
[422579566,1779123043000,-500.0,8.219e-05,2]
[422579553,1779123043000,-185.4982668,8.219e-05,2]
[422579555,1779123043000,-151.0,8.219e-05,2]
[422579591,1779123043000,-1298.78,8.219e-05,2]
[422579564,1779123043000,-241.0408632,8.219e-05,2]
[422579557,1779123043000,-500.0,8.219e-05,2]
[422579569,1779123043000,-2295.59,8.219e-05,2]
[422579571,1779123043000,-500.0,8.219e-05,2]
[422579573,1779123043000,-500.0,8.219e-05,2]
[422579575,1779123043000,-500.0,8.219e-05,2]
[422579576,1779123043000,-500.0,8.219e-05,2]
[422579578,1779123043000,-848.65,8.219e-05,2]
[422579580,1779123043000,-500.0,8.219e-05,2]
[422579582,1779123043000,-931.72,8.219e-05,2]
[422579584,1779123043000,-500.0,8.219e-05,2]
[422579559,1779123043000,-827.61,8.219e-05,2]
[422579643,1779123043000,-500.0,8.219e-05,2]
[422579736,1779123043000,-2019.31,8.219e-05,2]
[422579647,1779123043000,-500.0,8.219e-05,2]
[422579699,1779123043000,-500.0,8.219e-05,2]
[422579701,1779123043000,-500.0,8.219e-05,2]
[422579705,1779123043000,-356.03965921,8.219e-05,2]
[422579703,1779123043000,-500.0,8.219e-05,2]
[422579707,1779123043000,-1965.58,8.219e-05,2]
[422579709,1779123043000,-500.0,8.219e-05,2]
[422579711,1779123043000,-2443.64,8.219e-05,2]
[422579713,1779123043000,-769.99,8.219e-05,2]
[422579723,1779123043000,-2297.92,8.219e-05,2]
[422579721,1779123043000,-593.85,8.219e-05,2]
[422579697,1779123043000,-500.0,8.219e-05,2]
[422579717,1779123043000,-500.0,8.219e-05,2]
[422579725,1779123043000,-500.0,8.219e-05,2]
[422579727,1779123043000,-500.0,8.219e-05,2]
[422579729,1779123043000,-1866.46,8.219e-05,2]
[422579740,1779123043000,-7816.15,8.219e-05,2]
[422579732,1779123043000,-2204.42,8.219e-05,2]
[422579730,1779123043000,-4445.71,8.219e-05,2]
[422579742,1779123043000,-500.0,8.219e-05,2]
[422579735,1779123043000,-507.21703802,8.219e-05,2]
[422579738,1779123043000,-514.67,8.219e-05,2]
[422579641,1779123043000,-500.0,8.219e-05,2]
[422579719,1779123043000,-682.75,8.219e-05,2]
[422579685,1779123043000,-1263.49,8.219e-05,2]
[422579715,1779123043000,-2547.02,8.219e-05,2]
[422579681,1779123043000,-731.24,8.219e-05,2]
[422579649,1779123043000,-1379.67,8.219e-05,2]
[422579683,1779123043000,-6315.37,8.219e-05,2]
[422579658,1779123043000,-500.0,8.219e-05,2]
[422579660,1779123043000,-942.8,8.219e-05,2]
[422579664,1779123043000,-682.33,8.219e-05,2]
[422579662,1779123043000,-501.43,8.219e-05,2]
[422579650,1779123043000,-500.0,8.219e-05,2]
[422579654,1779123043000,-500.0,8.219e-05,2]
[422579666,1779123043000,-500.0,8.219e-05,2]
[422579652,1779123043000,-965.48,8.219e-05,2]
[422579668,1779123043000,-1368.3,8.219e-05,2]
[422579656,1779123043000,-500.0,8.219e-05,2]
[422579689,1779123043000,-2689.8,8.219e-05,2]
[422579679,1779123043000,-500.0,8.219e-05,2]
[422579672,1779123043000,-500.0,8.219e-05,2]
[422579693,1779123043000,-1276.47,8.219e-05,2]
[422579691,1779123043000,-548.02,8.219e-05,2]
[422579677,1779123043000,-852.73,8.219e-05,2]
[422579695,1779123043000,-2195.14,8.219e-05,2]
[422579687,1779123043000,-500.0,8.219e-05,2]
[422579676,1779123043000,-156.57226069,8.219e-05,2]
[422579670,1779123043000,-500.0,8.219e-05,2]
[422579674,1779123043000,-500.0,8.219e-05,2]
[422579825,1779123044000,-2665.1,8.219e-05,2]
[422579815,1779123044000,-2470.28,8.219e-05,2]
[422579827,1779123044000,-500.0,8.219e-05,2]
[422579819,1779123044000,-1177.62,8.219e-05,2]
[422579828,1779123044000,-500.0,8.219e-05,2]
[422579807,1779123044000,-2548.68,8.219e-05,2]
[422579813,1779123044000,-6288.67,8.219e-05,2]
[422579823,1779123044000,-500.0,8.219e-05,2]
[422579809,1779123044000,-729.58,8.219e-05,2]
[422579821,1779123044000,-500.0,8.219e-05,2]
[422579811,1779123044000,-2138.77,8.219e-05,2]
[422579832,1779123044000,-500.0,8.219e-05,2]
[422579817,1779123044000,-1749.26,8.219e-05,2]
[422579830,1779123044000,-6849.89,8.219e-05,2]
[422579856,1779123044000,-434.77237359,8.493e-05,2]
[422579836,1779123044000,-500.0,8.219e-05,2]
[422579845,1779123044000,-500.0,8.493e-05,2]
[422579837,1779123044000,-500.0,8.219e-05,2]
[422579847,1779123044000,-500.0,8.493e-05,2]
[422579849,1779123044000,-500.0,8.493e-05,2]
[422579843,1779123044000,-3309.6296,8.493e-05,2]
[422579850,1779123044000,-570.4,8.493e-05,2]
[422579839,1779123044000,-1452.03,8.219e-05,2]
[422579841,1779123044000,-250.0,8.238e-05,2]
[422579854,1779123044000,-500.0,8.493e-05,2]
[422579860,1779123044000,-669.83,8.493e-05,2]
[422579858,1779123044000,-500.0,8.493e-05,2]
[422579803,1779123044000,-2222.57,8.219e-05,2]
[422579834,1779123044000,-3262.96,8.219e-05,2]
[422579805,1779123044000,-500.0,8.219e-05,2]
[422579753,1779123044000,-500.0,8.219e-05,2]
[422579797,1779123044000,-500.0,8.219e-05,2]
[422579862,1779123044000,-500.0,8.493e-05,2]
[422579747,1779123044000,-500.0,8.219e-05,2]
[422579746,1779123044000,-500.0,8.219e-05,2]
[422579744,1779123044000,-1338.72,8.219e-05,2]
[422579751,1779123044000,-842.91,8.219e-05,2]
[422579749,1779123044000,-5606.13,8.219e-05,2]
[422579767,1779123044000,-1068.05,8.219e-05,2]
[422579769,1779123044000,-40105.0,8.219e-05,2]
[422579755,1779123044000,-5030.86,8.219e-05,2]
[422579771,1779123044000,-500.0,8.219e-05,2]
[422579775,1779123044000,-500.0,8.219e-05,2]
[422579773,1779123044000,-2731.18,8.219e-05,2]
[422579761,1779123044000,-568.34,8.219e-05,2]
[422579785,1779123044000,-500.0,8.219e-05,2]
[422579763,1779123044000,-500.0,8.219e-05,2]
[422579757,1779123044000,-1827.21,8.219e-05,2]
[422579765,1779123044000,-582.8,8.219e-05,2]
[422579779,1779123044000,-3653.47,8.219e-05,2]
[422579777,1779123044000,-8223.32,8.219e-05,2]
[422579781,1779123044000,-500.0,8.219e-05,2]
[422579793,1779123044000,-1839.22,8.219e-05,2]
[422579783,1779123044000,-500.0,8.219e-05,2]
[422579799,1779123044000,-864.85,8.219e-05,2]
[422579795,1779123044000,-3567.31,8.219e-05,2]
[422579787,1779123044000,-500.0,8.219e-05,2]
[422579801,1779123044000,-1037.29,8.219e-05,2]
[422579789,1779123044000,-1767.69,8.219e-05,2]
[422579791,1779123044000,-562.47896997,8.219e-05,2]
[422579759,1779123044000,-991.54,8.219e-05,2]
[422579870,1779123044000,-500.0,8.493e-05,2]
[422579852,1779123044000,-1087.65,8.493e-05,2]
[422579874,1779123044000,-500.0,8.493e-05,2]
[422579932,1779123044000,-500.0,8.493e-05,2]
[422579930,1779123044000,-500.0,8.493e-05,2]
[422579941,1779123044000,-595.06,8.493e-05,2]
[422579937,1779123044000,-500.0,8.493e-05,2]
[422579926,1779123044000,-586.70759153,8.493e-05,2]
[422579935,1779123044000,-500.0,8.493e-05,2]
[422579939,1779123044000,-714.69,8.493e-05,2]
[422579943,1779123044000,-500.0,8.493e-05,2]
[422579934,1779123044000,-1994.6,8.493e-05,2]
[422579928,1779123044000,-500.0,8.493e-05,2]
[422579945,1779123044000,-500.0,8.493e-05,2]
[422579949,1779123044000,-500.0,8.493e-05,2]
[422579947,1779123044000,-1164.37,8.493e-05,2]
[422579924,1779123044000,-591.75,8.493e-05,2]
[422579956,1779123044000,-1214.01,8.493e-05,2]
[422579958,1779123044000,-846.67,8.493e-05,2]
[422579954,1779123044000,-500.0,8.493e-05,2]
[422579953,1779123044000,-769.62,8.493e-05,2]
[422579960,1779123044000,-500.0,8.493e-05,2]
[422579962,1779123044000,-629.38,8.493e-05,2]
[422579963,1779123044000,-727.24,8.493e-05,2]
[422579967,1779123044000,-500.0,8.493e-05,2]
[422579965,1779123044000,-2105.41,8.493e-05,2]
[422579977,1779123044000,-1379.67,8.493e-05,2]
[422579975,1779123044000,-500.0,8.493e-05,2]
[422579969,1779123044000,-500.0,8.493e-05,2]
[422579971,1779123044000,-500.0,8.493e-05,2]
[422579973,1779123044000,-583.07,8.493e-05,2]
[422579951,1779123044000,-500.0,8.493e-05,2]
[422579922,1779123044000,-1298.78,8.493e-05,2]
[422579872,1779123044000,-500.0,8.493e-05,2]
[422579911,1779123044000,-500.0,8.493e-05,2]
[422579880,1779123044000,-500.0,8.493e-05,2]
[422579878,1779123044000,-1136.8,8.493e-05,2]
[422579876,1779123044000,-500.0,8.493e-05,2]
[422579863,1779123044000,-500.0,8.493e-05,2]
[422579893,1779123044000,-500.0,8.493e-05,2]
[422579894,1779123044000,-500.0,8.493e-05,2]
[422579895,1779123044000,-600.14,8.493e-05,2]
[422579979,1779123044000,-500.0,8.493e-05,2]
[422579920,1779123044000,-500.0,8.493e-05,2]
[422579886,1779123044000,-500.0,8.493e-05,2]
[422579882,1779123044000,-426.21555803,8.493e-05,2]
[422579884,1779123044000,-629.37,8.493e-05,2]
[422579888,1779123044000,-500.0,8.493e-05,2]
[422579892,1779123044000,-500.0,8.493e-05,2]
[422579896,1779123044000,-500.0,8.493e-05,2]
[422579890,1779123044000,-399.59969229,8.493e-05,2]
[422579891,1779123044000,-1248.23,8.493e-05,2]
[422579916,1779123044000,-931.72,8.493e-05,2]
[422579907,1779123044000,-500.0,8.493e-05,2]
[422579918,1779123044000,-500.0,8.493e-05,2]
[422579898,1779123044000,-500.0,8.493e-05,2]
[422579905,1779123044000,-500.0,8.493e-05,2]
[422579913,1779123044000,-848.65,8.493e-05,2]
[422579909,1779123044000,-500.0,8.493e-05,2]
[422579903,1779123044000,-2295.59,8.493e-05,2]
[422579902,1779123044000,-500.0,8.493e-05,2]
[422579900,1779123044000,-500.0,8.493e-05,2]
[422579897,1779123044000,-827.61,8.493e-05,2]
[422579889,1779123044000,-1261.32,8.493e-05,2]
[422579915,1779123044000,-500.0,8.493e-05,2]
[422580060,1779123045000,-7816.15,8.493e-05,2]
[422580058,1779123045000,-514.67,8.493e-05,2]
[422580062,1779123045000,-500.0,8.493e-05,2]
[422580064,1779123045000,-1338.72,8.493e-05,2]
[422580068,1779123045000,-500.0,8.493e-05,2]
[422580051,1779123045000,-1866.46,8.493e-05,2]
[422580055,1779123045000,-2204.42,8.493e-05,2]
[422580057,1779123045000,-2019.31,8.493e-05,2]
[422580049,1779123045000,-500.0,8.493e-05,2]
[422580047,1779123045000,-500.0,8.493e-05,2]
[422580045,1779123045000,-2297.92,8.493e-05,2]
[422580053,1779123045000,-4445.71,8.493e-05,2]
[422580066,1779123045000,-500.0,8.493e-05,2]
[422580097,1779123045000,-3653.47,8.493e-05,2]
[422580082,1779123045000,-500.0,8.493e-05,2]
[422580084,1779123045000,-582.8,8.493e-05,2]
[422580080,1779123045000,-568.34,8.493e-05,2]
[422580077,1779123045000,-1827.21,8.493e-05,2]
[422580089,1779123045000,-554.34416434,8.493e-05,2]
[422580079,1779123045000,-991.54,8.493e-05,2]
[422580071,1779123045000,-842.91,8.493e-05,2]
[422580075,1779123045000,-5030.86,8.493e-05,2]
[422580086,1779123045000,-1068.05,8.493e-05,2]
[422580088,1779123045000,-40105.0,8.493e-05,2]
[422580073,1779123045000,-500.0,8.493e-05,2]
[422580091,1779123045000,-2731.18,8.493e-05,2]
[422580094,1779123045000,-500.0,8.493e-05,2]
[422580031,1779123045000,-1965.58,8.493e-05,2]
[422580070,1779123045000,-5606.13,8.493e-05,2]
[422580043,1779123045000,-593.85,8.493e-05,2]
[422580015,1779123045000,-2689.8,8.493e-05,2]
[422580040,1779123045000,-500.0,8.493e-05,2]
[422580095,1779123045000,-8223.32,8.493e-05,2]
[422579981,1779123045000,-965.48,8.493e-05,2]
[422579982,1779123045000,-500.0,8.493e-05,2]
[422579984,1779123045000,-500.0,8.493e-05,2]
[422579990,1779123045000,-501.43,8.493e-05,2]
[422579986,1779123045000,-500.0,8.493e-05,2]
[422579988,1779123045000,-942.8,8.493e-05,2]
[422579992,1779123045000,-682.33,8.493e-05,2]
[422579994,1779123045000,-500.0,8.493e-05,2]
[422579996,1779123045000,-1368.3,8.493e-05,2]
[422580007,1779123045000,-731.24,8.493e-05,2]
[422580011,1779123045000,-1263.49,8.493e-05,2]
[422580009,1779123045000,-6315.37,8.493e-05,2]
[422580013,1779123045000,-531.8366129,8.493e-05,2]
[422579998,1779123045000,-500.0,8.493e-05,2]
[422580004,1779123045000,-852.73,8.493e-05,2]
[422580000,1779123045000,-270.12441368,8.493e-05,2]
[422580019,1779123045000,-1276.47,8.493e-05,2]
[422580002,1779123045000,-500.0,8.493e-05,2]
[422580017,1779123045000,-548.02,8.493e-05,2]
[422580033,1779123045000,-500.0,8.493e-05,2]
[422580034,1779123045000,-2443.64,8.493e-05,2]
[422580036,1779123045000,-769.99,8.493e-05,2]
[422580023,1779123045000,-500.0,8.493e-05,2]
[422580021,1779123045000,-2195.14,8.493e-05,2]
[422580038,1779123045000,-2547.02,8.493e-05,2]
[422580027,1779123045000,-500.0,8.493e-05,2]
[422580025,1779123045000,-500.0,8.493e-05,2]
[422580042,1779123045000,-682.75,8.493e-05,2]
[422580029,1779123045000,-500.0,8.493e-05,2]
[422580099,1779123045000,-500.0,8.493e-05,2]
[422580005,1779123045000,-500.0,8.493e-05,2]
[422580103,1779123045000,-500.0,8.493e-05,2]
[422580172,1779123045000,-570.4,8.767e-05,2]
[422580174,1779123045000,-1087.65,8.767e-05,2]
[422580176,1779123045000,-500.0,8.767e-05,2]
[422580189,1779123045000,-500.0,8.767e-05,2]
[422580185,1779123045000,-500.0,8.767e-05,2]
[422580191,1779123045000,-500.0,8.767e-05,2]
[422580183,1779123045000,-500.0,8.767e-05,2]
[422580178,1779123045000,-500.0,8.767e-05,2]
[422580187,1779123045000,-500.0,8.767e-05,2]
[422580180,1779123045000,-669.83,8.767e-05,2]
[422580195,1779123045000,-500.0,8.767e-05,2]
[422580182,1779123045000,-500.0,8.767e-05,2]
[422580193,1779123045000,-1136.8,8.767e-05,2]
[422580199,1779123045000,-500.0,8.767e-05,2]
[422580211,1779123045000,-500.0,8.767e-05,2]
[422580226,1779123045000,-500.0,8.767e-05,2]
[422580201,1779123045000,-500.0,8.767e-05,2]
[422580197,1779123045000,-629.37,8.767e-05,2]
[422580203,1779123045000,-1261.32,8.767e-05,2]
[422580216,1779123045000,-827.61,8.767e-05,2]
[422580207,1779123045000,-500.0,8.767e-05,2]
[422580213,1779123045000,-600.14,8.767e-05,2]
[422580209,1779123045000,-500.0,8.767e-05,2]
[422580215,1779123045000,-500.0,8.767e-05,2]
[422580205,1779123045000,-1248.23,8.767e-05,2]
[422580220,1779123045000,-500.0,8.767e-05,2]
[422580218,1779123045000,-500.0,8.767e-05,2]
[422580222,1779123045000,-500.0,8.767e-05,2]
[422580101,1779123045000,-500.0,8.493e-05,2]
[422580171,1779123045000,-500.0,8.767e-05,2]
[422580169,1779123045000,-500.0,8.767e-05,2]
[422580224,1779123045000,-2295.59,8.767e-05,2]
[422580165,1779123045000,-3309.6296,8.767e-05,2]
[422580106,1779123045000,-500.0,8.493e-05,2]
[422580108,1779123045000,-1767.69,8.493e-05,2]
[422580116,1779123045000,-864.85,8.493e-05,2]
[422580118,1779123045000,-1037.29,8.493e-05,2]
[422580110,1779123045000,-1839.22,8.493e-05,2]
[422580114,1779123045000,-194.2145982,8.493e-05,2]
[422580112,1779123045000,-3567.31,8.493e-05,2]
[422580133,1779123045000,-2470.28,8.493e-05,2]
[422580159,1779123045000,-500.0,8.493e-05,2]
[422580137,1779123045000,-1177.62,8.493e-05,2]
[422580135,1779123045000,-1749.26,8.493e-05,2]
[422580139,1779123045000,-500.0,8.493e-05,2]
[422580120,1779123045000,-2222.57,8.493e-05,2]
[422580143,1779123045000,-2665.1,8.493e-05,2]
[422580132,1779123045000,-6288.67,8.493e-05,2]
[422580141,1779123045000,-500.0,8.493e-05,2]
[422580163,1779123045000,-500.0,8.742e-05,2]
[422580125,1779123045000,-2548.68,8.493e-05,2]
[422580161,1779123045000,-1452.03,8.493e-05,2]
[422580167,1779123045000,-500.0,8.767e-05,2]
[422580157,1779123045000,-500.0,8.493e-05,2]